fUSD/lending_fUSD_20250308
["ID","MTS","AMOUNT","RATE_DAILY","PERIOD"]
[355684223,1741456244072,-573.35,9.209e-05,2]
[355684224,1741456244081,-814.94,9.209e-05,2]
[355684225,1741456244091,-500.0,9.209e-05,2]
[355684226,1741456244102,-595.93,9.209e-05,2]
[355684227,1741456244112,-500.0,9.209e-05,2]
[355684228,1741456244122,-500.0,9.209e-05,2]
[355684229,1741456244132,-500.0,9.209e-05,2]
[355684230,1741456244142,-1651.85,9.209e-05,2]
[355684231,1741456244151,-568.77,9.209e-05,2]
[355684232,1741456244161,-1101.03,9.209e-05,2]
[355684233,1741456244171,-1240.5,9.209e-05,2]
[355684234,1741456244181,-676.73,9.209e-05,2]
[355684235,1741456244191,-3157.35,9.209e-05,2]
[355684236,1741456244202,-778.0,9.209e-05,2]
[355684237,1741456244213,-1108.53,9.209e-05,2]
[355684239,1741456244225,-500.0,9.209e-05,2]
[355684241,1741456244235,-500.0,9.209e-05,2]
[355684243,1741456244245,-996.3,9.209e-05,2]
[355684245,1741456244256,-500.0,9.209e-05,2]
[355684247,1741456244265,-3678.94,9.209e-05,2]
[355684249,1741456244275,-1404.08,9.209e-05,2]
[355684251,1741456244284,-500.0,9.209e-05,2]
[355684253,1741456244295,-1438.38,9.209e-05,2]
[355684255,1741456244304,-1293.16,9.209e-05,2]
[355684257,1741456244313,-500.0,9.209e-05,2]
[355684259,1741456244323,-1116.67,9.209e-05,2]
[355684261,1741456244332,-6419.68,9.209e-05,2]
[355684263,1741456244341,-939.98,9.209e-05,2]
[355684265,1741456244350,-1617.07,9.209e-05,2]
[355684267,1741456244359,-500.0,9.209e-05,2]
[355684269,1741456244368,-1152.29,9.209e-05,2]
[355684271,1741456244378,-1407.05,9.209e-05,2]
[355684273,1741456244388,-688.97,9.209e-05,2]
[355684275,1741456244397,-635.04,9.209e-05,2]
[355684277,1741456244407,-1362.2,9.209e-05,2]
[355684279,1741456244416,-5910.88,9.209e-05,2]
[355684281,1741456244426,-500.0,9.209e-05,2]
[355684283,1741456244435,-1159.88,9.209e-05,2]
[355684285,1741456244445,-1586.58,9.209e-05,2]
[355684287,1741456244455,-764.31,9.209e-05,2]
[355684289,1741456244465,-1665.87,9.209e-05,2]
[355684291,1741456244474,-910.06,9.209e-05,2]
[355684293,1741456244484,-500.0,9.209e-05,2]
[355684295,1741456244494,-500.0,9.209e-05,2]
[355684297,1741456244503,-500.0,9.209e-05,2]
[355684299,1741456244514,-622.83,9.209e-05,2]
[355684301,1741456244523,-3038.92,9.209e-05,2]
[355684303,1741456244533,-1138.09,9.209e-05,2]
[355684304,1741456244544,-500.0,9.209e-05,2]
[355684307,1741456244555,-4745.04,9.209e-05,2]
[355684309,1741456244565,-500.0,9.209e-05,2]
[355684311,1741456244574,-1586.07,9.209e-05,2]
[355684313,1741456244584,-3340.42,9.209e-05,2]
[355684315,1741456244593,-730.45,9.209e-05,2]
[355684337,1741456244803,-500.0,9.209e-05,2]
[355684339,1741456244813,-1295.39,9.209e-05,2]
[355684341,1741456244823,-605.1,9.209e-05,2]
[355684343,1741456244832,-500.0,9.209e-05,2]
[355684345,1741456244842,-500.0,9.209e-05,2]
[355684347,1741456244851,-546.56,9.209e-05,2]
[355684349,1741456244860,-500.0,9.209e-05,2]
[355684351,1741456244869,-674.36,9.209e-05,2]
[355684353,1741456244879,-500.0,9.209e-05,2]
[355684355,1741456244887,-697.02,9.209e-05,2]
[355684357,1741456244896,-2755.86,9.209e-05,2]
[355684359,1741456244905,-578.24,9.209e-05,2]
[355684361,1741456244914,-500.0,9.21e-05,2]
[355684363,1741456244923,-500.0,9.21e-05,2]
[355684364,1741456244932,-500.0,9.21e-05,2]
[355684365,1741456244941,-500.0,9.21e-05,2]
[355684366,1741456244951,-500.0,9.21e-05,2]
[355684367,1741456244960,-500.0,9.21e-05,2]
[355684368,1741456244970,-500.0,9.21e-05,2]
[355684369,1741456244979,-500.0,9.21e-05,2]
[355684370,1741456244989,-500.0,9.21e-05,2]
[355684371,1741456244999,-500.0,9.21e-05,2]
[355684372,1741456245008,-500.0,9.21e-05,2]
[355684373,1741456245018,-500.0,9.21e-05,2]
[355684374,1741456245028,-500.0,9.21e-05,2]
[355684375,1741456245037,-500.0,9.21e-05,2]
[355684377,1741456245047,-500.0,9.21e-05,2]
[355684379,1741456245057,-500.0,9.21e-05,2]
[355684381,1741456245067,-500.0,9.21e-05,2]
[355684383,1741456245077,-500.0,9.21e-05,2]
[355684385,1741456245086,-500.0,9.21e-05,2]
[355684387,1741456245096,-500.0,9.21e-05,2]
[355684389,1741456245106,-500.0,9.21e-05,2]
[355684391,1741456245116,-500.0,9.21e-05,2]
[355684392,1741456245125,-500.0,9.21e-05,2]
[355684393,1741456245135,-500.0,9.21e-05,2]
[355684394,1741456245145,-500.0,9.21e-05,2]
[355684395,1741456245155,-500.0,9.21e-05,2]
[355684396,1741456245165,-500.0,9.21e-05,2]
[355684397,1741456245175,-500.0,9.21e-05,2]
[355684398,1741456245185,-536.70492808,9.21e-05,2]
[355684399,1741456245195,-500.0,9.21e-05,2]
[355684400,1741456245205,-528.21,9.21e-05,2]
[355684401,1741456245217,-500.0,9.21e-05,2]
[355684402,1741456245228,-512.78,9.21e-05,2]
[355684403,1741456245238,-500.0,9.21e-05,2]
[355684404,1741456245248,-500.0,9.21e-05,2]
[355684405,1741456245259,-337.003759,9.21e-05,2]
[355684406,1741456245269,-500.0,9.21e-05,2]
[355684407,1741456245279,-688.72,9.21e-05,2]
[355684408,1741456245290,-203.97,9.21e-05,2]
[355684409,1741456245301,-633.54,9.21e-05,2]
[355684410,1741456245311,-475.54,9.21e-05,2]
[355684411,1741456245321,-500.0,9.21e-05,2]
[355684412,1741456245331,-516.06,9.21e-05,2]
[355684413,1741456245342,-529.82,9.21e-05,2]
[355684415,1741456245352,-500.0,9.21e-05,2]
[355684417,1741456245362,-500.0,9.21e-05,2]
[355684419,1741456245372,-500.0,9.21e-05,2]
[355684421,1741456245382,-506.35,9.21e-05,2]
[355684422,1741456245392,-500.0,9.21e-05,2]
[355684423,1741456245402,-500.0,9.21e-05,2]
[355684424,1741456245411,-500.0,9.21e-05,2]
[355684425,1741456245421,-501.84,9.21e-05,2]
[355684426,1741456245431,-500.0,9.21e-05,2]
[355684427,1741456245440,-600.41,9.21e-05,2]
[355684428,1741456245451,-500.0,9.21e-05,2]
[355684429,1741456245460,-551.83,9.21e-05,2]
[355684430,1741456245469,-500.0,9.21e-05,2]
[355684431,1741456245479,-500.0,9.21e-05,2]
[355684432,1741456245488,-1367.32,9.21e-05,2]
[355684433,1741456245498,-500.0,9.21e-05,2]
[355684434,1741456245507,-663.32,9.21e-05,2]
[355684435,1741456245516,-715.67,9.21e-05,2]
[355684436,1741456245526,-1067.71,9.21e-05,2]
[355684437,1741456245536,-500.0,9.21e-05,2]
[355684438,1741456245546,-2597.73,9.21e-05,2]
[355684439,1741456245556,-880.82,9.21e-05,2]
[355684440,1741456245566,-531.6,9.21e-05,2]
[355684441,1741456245576,-875.45,9.21e-05,2]
[355684442,1741456245586,-929.57,9.21e-05,2]
[355684443,1741456245595,-562.8,9.21e-05,2]
[355684444,1741456245605,-500.0,9.21e-05,2]
[355684445,1741456245615,-1463.68,9.21e-05,2]
[355684446,1741456245624,-609.08,9.21e-05,2]
[355684447,1741456245634,-606.87,9.21e-05,2]
[355684448,1741456245644,-500.0,9.21e-05,2]
[355684449,1741456245654,-3255.39,9.21e-05,2]
[355684450,1741456245664,-856.21,9.21e-05,2]
[355684451,1741456245674,-500.0,9.21e-05,2]
[355684452,1741456245683,-2399.28,9.21e-05,2]
[355684453,1741456245693,-500.0,9.21e-05,2]
[355684454,1741456245703,-500.0,9.21e-05,2]
[355684455,1741456245712,-1856.69,9.21e-05,2]
[355684456,1741456245722,-704.9,9.21e-05,2]
[355684457,1741456245732,-702.97,9.21e-05,2]
[355684458,1741456245742,-500.0,9.21e-05,2]
[355684459,1741456245751,-500.0,9.21e-05,2]
[355684460,1741456245761,-500.0,9.21e-05,2]
[355684461,1741456245771,-500.0,9.21e-05,2]
[355684462,1741456245781,-500.0,9.21e-05,2]
[355684463,1741456245791,-1464.44,9.21e-05,2]
[355684464,1741456245801,-921.95,9.21e-05,2]
[355684465,1741456245811,-500.0,9.21e-05,2]
[355684466,1741456245820,-738.38,9.21e-05,2]
[355684467,1741456245830,-500.0,9.21e-05,2]
[355684468,1741456245840,-500.0,9.21e-05,2]
[355684469,1741456245850,-987.9,9.21e-05,2]
[355684470,1741456245861,-500.0,9.21e-05,2]
[355684471,1741456245871,-1132.36,9.21e-05,2]
[355684472,1741456245880,-1049.23,9.21e-05,2]
[355684473,1741456245890,-500.0,9.21e-05,2]
[355684474,1741456245900,-2015.78,9.21e-05,2]
[355684475,1741456245910,-500.0,9.21e-05,2]
[355684476,1741456245920,-1402.29,9.21e-05,2]
[355684477,1741456245930,-500.0,9.21e-05,2]
[355684478,1741456245941,-1530.43,9.21e-05,2]
[355684479,1741456245950,-3538.21,9.21e-05,2]
[355684480,1741456245960,-204.84,9.21e-05,2]
[355684481,1741456245970,-500.0,9.21e-05,2]
[355684482,1741456245980,-3141.66,9.21e-05,2]
[355684483,1741456245990,-500.0,9.21e-05,2]
[355684484,1741456245999,-1808.5,9.21e-05,2]
[355684485,1741456246009,-500.0,9.21e-05,2]
[355684486,1741456246018,-2951.36,9.21e-05,2]
[355684487,1741456246028,-500.0,9.21e-05,2]
[355684488,1741456246038,-13800.49,9.21e-05,2]
[355684489,1741456246048,-500.0,9.21e-05,2]
[355684490,1741456246057,-500.0,9.21e-05,2]
[355684491,1741456246067,-1367.41,9.21e-05,2]
[355684492,1741456246076,-500.0,9.21e-05,2]
[355684493,1741456246086,-500.0,9.21e-05,2]
[355684494,1741456246097,-500.0,9.21e-05,2]
[355684495,1741456246107,-991.23,9.21e-05,2]
[355684496,1741456246116,-500.0,9.21e-05,2]
[355684497,1741456246126,-1840.5,9.21e-05,2]
[355684498,1741456246135,-500.0,9.21e-05,2]
[355684499,1741456246145,-500.0,9.21e-05,2]
[355684500,1741456246155,-9909.89,9.21e-05,2]
[355684501,1741456246165,-500.0,9.21e-05,2]
[355684502,1741456246174,-500.0,9.21e-05,2]
[355684503,1741456246184,-500.0,9.21e-05,2]
[355684504,1741456246194,-500.0,9.21e-05,2]
[355684505,1741456246204,-1130.76,9.21e-05,2]
[355684506,1741456246217,-199.60991844,9.21e-05,2]
[355684507,1741456246228,-500.0,9.21e-05,2]
[355684508,1741456246238,-500.0,9.21e-05,2]
[355684509,1741456246248,-500.0,9.21e-05,2]
[355684510,1741456246259,-500.0,9.21e-05,2]
[355684511,1741456246269,-902.26,9.21e-05,2]
[355684512,1741456246279,-1896.91,9.21e-05,2]
[355684513,1741456246289,-500.0,9.21e-05,2]
[355684514,1741456246300,-500.0,9.21e-05,2]
[355684515,1741456246310,-1000.0,9.21e-05,2]
[355684516,1741456246320,-500.0,9.211e-05,2]
[355684517,1741456246329,-500.0,9.211e-05,2]
[355684518,1741456246338,-500.0,9.211e-05,2]
[355684519,1741456246348,-500.0,9.211e-05,2]
[355684520,1741456246358,-500.0,9.211e-05,2]
[355684521,1741456246369,-500.0,9.211e-05,2]
[355684522,1741456246383,-485.1123718,9.211e-05,2]
[355684523,1741456246393,-500.0,9.211e-05,2]
[355684524,1741456246403,-500.0,9.211e-05,2]
[355684526,1741456246412,-500.0,9.211e-05,2]
[355684528,1741456246421,-500.0,9.211e-05,2]
[355684530,1741456246431,-500.0,9.211e-05,2]
[355684532,1741456246441,-386.13249952,9.211e-05,2]
[355684534,1741456246450,-500.0,9.211e-05,2]
[355684535,1741456246460,-500.0,9.211e-05,2]
[355684537,1741456246470,-515.69,9.211e-05,2]
[355684539,1741456246479,-500.0,9.211e-05,2]
[355684541,1741456246489,-608.77,9.211e-05,2]
[355684543,1741456246498,-500.0,9.211e-05,2]
[355684544,1741456246508,-500.0,9.211e-05,2]
[355684545,1741456246518,-790.66,9.211e-05,2]
[355684546,1741456246527,-500.0,9.211e-05,2]
[355684547,1741456246537,-500.0,9.211e-05,2]
[355684548,1741456246546,-500.0,9.211e-05,2]
[355684549,1741456246557,-500.0,9.211e-05,2]
[355684550,1741456246567,-500.0,9.211e-05,2]
[355684551,1741456246577,-500.0,9.211e-05,2]
[355684552,1741456246587,-588.37,9.211e-05,2]
[355684553,1741456246597,-500.0,9.211e-05,2]
[355684554,1741456246607,-319.96,9.211e-05,2]
[355684555,1741456246617,-500.0,9.211e-05,2]
[355684556,1741456246628,-500.0,9.211e-05,2]
[355684557,1741456246637,-500.0,9.211e-05,2]
[355684558,1741456246646,-708.38,9.211e-05,2]
[355684559,1741456246658,-500.0,9.211e-05,2]
[355684560,1741456246668,-500.0,9.211e-05,2]
[355684561,1741456246679,-951.61,9.211e-05,2]
[355684562,1741456246689,-497.74405422,9.211e-05,2]
[355684563,1741456246698,-626.44,9.211e-05,2]
[355684564,1741456246709,-500.0,9.211e-05,2]
[355684565,1741456246719,-500.0,9.211e-05,2]
[355684566,1741456246728,-500.0,9.211e-05,2]
[355684567,1741456246738,-500.0,9.211e-05,2]
[355684568,1741456246748,-500.0,9.211e-05,2]
[355684569,1741456246758,-500.0,9.211e-05,2]
[355684570,1741456246767,-537.15,9.211e-05,2]
[355684571,1741456246776,-500.0,9.211e-05,2]
[355684572,1741456246786,-679.36,9.211e-05,2]
[355684573,1741456246796,-500.0,9.211e-05,2]
[355684574,1741456246806,-500.0,9.211e-05,2]
[355684575,1741456246816,-500.0,9.211e-05,2]
[355684576,1741456246828,-500.0,9.211e-05,2]
[355684577,1741456246842,-500.0,9.211e-05,2]
[355684578,1741456246853,-500.0,9.211e-05,2]
[355684579,1741456246863,-162.25770135,9.215e-05,2]
[355684580,1741456246873,-605.78320837,9.27e-05,2]
[355684581,1741456246883,-162.25770135,9.271e-05,2]
[355684582,1741456246892,-1000.0,9.282e-05,2]
[355684583,1741456246902,-8400.0,9.3e-05,3]
[355684584,1741456246911,-162.25770135,9.327e-05,2]
[355684585,1741456246920,-1278.0,9.38e-05,2]
[355684586,1741456246929,-2032.0,9.38e-05,2]
[355684587,1741456246939,-1459.0,9.38e-05,2]
[355684588,1741456246948,-571.0,9.38e-05,2]
[355684589,1741456246958,-641.0,9.38e-05,2]
[355684590,1741456246967,-150.0,9.38e-05,2]
[355684591,1741456246977,-786.0,9.38e-05,2]
[355684592,1741456246987,-907.0,9.38e-05,2]
[355684593,1741456246996,-1270.0,9.38e-05,2]
[355684594,1741456247006,-1428.0,9.38e-05,2]
[355684595,1741456247016,-541.0,9.38e-05,2]
[355684596,1741456247026,-4042.0,9.38e-05,2]
[355684597,1741456247037,-1012.0,9.38e-05,2]
[355684598,1741456247048,-150.0,9.38e-05,2]
[355684599,1741456247058,-1802.493,9.38e-05,2]
[355684600,1741456247069,-150.0,9.38e-05,2]
[355684601,1741456247079,-162.25770135,9.383e-05,2]
[355684602,1741456247088,-998.32,9.4e-05,2]
[355684603,1741456247098,-12600.0,9.4e-05,3]
[355684604,1741456247108,-550.0,9.419e-05,2]
[355684605,1741456247118,-150.0,9.419e-05,2]
[355684606,1741456247128,-162.25770135,9.439e-05,2]
[355684607,1741456247138,-500.0,9.483e-05,2]
[355684608,1741456247148,-187.91433616,9.483e-05,2]
[355684609,1741456247158,-500.0,9.483e-05,2]
[355684610,1741456247168,-500.0,9.483e-05,2]
[355684611,1741456247177,-500.0,9.483e-05,2]
[355684612,1741456247238,-715.54,9.483e-05,2]
[355684613,1741456247248,-1374.21,9.483e-05,2]
[355684614,1741456247259,-500.0,9.483e-05,2]
[355684615,1741456247268,-1153.1,9.483e-05,2]
[355684616,1741456247278,-1163.89,9.483e-05,2]
[355684617,1741456247291,-744.97,9.483e-05,2]
[355684618,1741456247301,-2018.15,9.483e-05,2]
[355684619,1741456247312,-976.7,9.483e-05,2]
[355684620,1741456247323,-778.82,9.483e-05,2]
[355684621,1741456247332,-1880.67,9.483e-05,2]
[355684622,1741456247341,-573.35,9.483e-05,2]
[355684623,1741456247351,-814.94,9.483e-05,2]
[355684624,1741456247361,-500.0,9.483e-05,2]
[355684625,1741456247371,-595.93,9.483e-05,2]
[355684626,1741456247381,-500.0,9.483e-05,2]
[355684627,1741456247390,-500.0,9.483e-05,2]
[355684628,1741456247400,-500.0,9.483e-05,2]
[355684629,1741456247410,-1651.85,9.483e-05,2]
[355684630,1741456247420,-568.77,9.483e-05,2]
[355684631,1741456247429,-1101.03,9.483e-05,2]
[355684632,1741456247439,-1240.5,9.483e-05,2]
[355684633,1741456247448,-676.73,9.483e-05,2]
[355684634,1741456247458,-3157.35,9.483e-05,2]
[355684635,1741456247468,-778.0,9.483e-05,2]
[355684636,1741456247478,-1108.53,9.483e-05,2]
[355684637,1741456247487,-500.0,9.483e-05,2]
[355684638,1741456247497,-471.63569079,9.483e-05,2]
[355684639,1741456247506,-996.3,9.483e-05,2]
[355684640,1741456247517,-500.0,9.483e-05,2]
[355684641,1741456247526,-3678.94,9.483e-05,2]
[355684642,1741456247536,-1404.08,9.483e-05,2]
[355684643,1741456247546,-500.0,9.483e-05,2]
[355684644,1741456247556,-1438.38,9.483e-05,2]
[355684645,1741456247566,-1293.16,9.483e-05,2]
[355684646,1741456247576,-500.0,9.483e-05,2]
[355684647,1741456247585,-1116.67,9.483e-05,2]
[355684648,1741456247594,-6419.68,9.483e-05,2]
[355684649,1741456247603,-939.98,9.483e-05,2]
[355684650,1741456247613,-1617.07,9.483e-05,2]
[355684651,1741456247622,-500.0,9.483e-05,2]
[355684652,1741456247631,-1152.29,9.483e-05,2]
[355684653,1741456247641,-1407.05,9.483e-05,2]
[355684654,1741456247651,-688.97,9.483e-05,2]
[355684655,1741456247661,-635.04,9.483e-05,2]
[355684656,1741456247670,-1362.2,9.483e-05,2]
[355684657,1741456247679,-5910.88,9.483e-05,2]
[355684658,1741456247690,-500.0,9.483e-05,2]
[355684659,1741456247700,-1159.88,9.483e-05,2]
[355684660,1741456247710,-1586.58,9.483e-05,2]
[355684661,1741456247720,-764.31,9.483e-05,2]
[355684662,1741456247730,-1665.87,9.483e-05,2]
[355684663,1741456247739,-910.06,9.483e-05,2]
[355684664,1741456247749,-500.0,9.483e-05,2]
[355684665,1741456247759,-500.0,9.483e-05,2]
[355684666,1741456247769,-500.0,9.483e-05,2]
[355684667,1741456247778,-622.83,9.483e-05,2]
[355684668,1741456247788,-3038.92,9.483e-05,2]
[355684669,1741456247799,-1138.09,9.483e-05,2]
[355684670,1741456247808,-500.0,9.483e-05,2]
[355684671,1741456247818,-4745.04,9.483e-05,2]
[355684672,1741456247829,-500.0,9.483e-05,2]
[355684673,1741456247838,-1586.07,9.483e-05,2]
[355684674,1741456247848,-3340.42,9.483e-05,2]
[355684675,1741456247858,-730.45,9.483e-05,2]
[355684676,1741456247867,-500.0,9.483e-05,2]
[355684677,1741456247877,-1295.39,9.483e-05,2]
[355684678,1741456247887,-605.1,9.483e-05,2]
[355684679,1741456247896,-500.0,9.483e-05,2]
[355684680,1741456247906,-500.0,9.483e-05,2]
[355684681,1741456247916,-546.56,9.483e-05,2]
[355684682,1741456247926,-500.0,9.483e-05,2]
[355684683,1741456247935,-674.36,9.483e-05,2]
[355684684,1741456247945,-500.0,9.483e-05,2]
[355684685,1741456247955,-697.02,9.483e-05,2]
[355684686,1741456247965,-2755.86,9.483e-05,2]
[355684687,1741456247975,-578.24,9.483e-05,2]
[355684688,1741456247984,-1310.9120015,9.484e-05,3]
[355684689,1741456247994,-500.0,9.484e-05,2]
[355684690,1741456248004,-500.0,9.484e-05,2]
[355684691,1741456248014,-500.0,9.484e-05,2]
[355684692,1741456248023,-500.0,9.484e-05,2]
[355684693,1741456248033,-500.0,9.484e-05,2]
[355684694,1741456248042,-500.0,9.484e-05,2]
[355684695,1741456248054,-500.0,9.484e-05,2]
[355684696,1741456248063,-500.0,9.484e-05,2]
[355684697,1741456248073,-500.0,9.484e-05,2]
[355684698,1741456248083,-500.0,9.484e-05,2]
[355684699,1741456248093,-596.5,9.484e-05,2]
[355684700,1741456248102,-500.0,9.484e-05,2]
[355684701,1741456248112,-500.0,9.484e-05,2]
[355684702,1741456248121,-500.0,9.484e-05,2]
[355684703,1741456248131,-500.0,9.484e-05,2]
[355684704,1741456248141,-500.0,9.484e-05,2]
[355684705,1741456248150,-500.0,9.484e-05,2]
[355684706,1741456248160,-500.0,9.484e-05,2]
[355684707,1741456248170,-649.53817386,9.484e-05,2]
[355684708,1741456248180,-500.0,9.484e-05,2]
[355684709,1741456248190,-500.0,9.484e-05,2]
[355684710,1741456248200,-500.0,9.484e-05,2]
[355684711,1741456248210,-500.0,9.484e-05,2]
[355684712,1741456248223,-500.0,9.484e-05,2]
[355684713,1741456248233,-528.21,9.484e-05,2]
[355684714,1741456248243,-559.54800927,9.484e-05,2]
[355684715,1741456248252,-512.78,9.484e-05,2]
[355684716,1741456248263,-500.0,9.484e-05,2]
[355684717,1741456248272,-500.0,9.484e-05,2]
[355684718,1741456248283,-688.72,9.484e-05,2]
[355684719,1741456248293,-633.54,9.484e-05,2]
[355684720,1741456248304,-639.80394031,9.484e-05,2]
[355684721,1741456248314,-516.06,9.484e-05,2]
[355684722,1741456248324,-529.82,9.484e-05,2]
[355684723,1741456248333,-500.0,9.484e-05,2]
[355684724,1741456248343,-154.03,9.484e-05,2]
[355684725,1741456248353,-506.35,9.484e-05,2]
[355684726,1741456248363,-500.0,9.484e-05,2]
[355684727,1741456248373,-500.0,9.484e-05,2]
[355684728,1741456248383,-501.84,9.484e-05,2]
[355684729,1741456248393,-330.72018907,9.484e-05,2]
[355684730,1741456248403,-600.41,9.484e-05,2]
[355684731,1741456248414,-500.0,9.484e-05,2]
[355684732,1741456248424,-551.83,9.484e-05,2]
[355684733,1741456248434,-500.0,9.484e-05,2]
[355684734,1741456248443,-500.0,9.484e-05,2]
[355684735,1741456248452,-1367.32,9.484e-05,2]
[355684736,1741456248461,-500.0,9.484e-05,2]
[355684737,1741456248471,-663.32,9.484e-05,2]
[355684738,1741456248481,-715.67,9.484e-05,2]
[355684739,1741456248491,-1067.71,9.484e-05,2]
[355684740,1741456248501,-500.0,9.484e-05,2]
[355684741,1741456248510,-2597.73,9.484e-05,2]
[355684742,1741456248521,-880.82,9.484e-05,2]
[355684743,1741456248530,-531.6,9.484e-05,2]
[355684744,1741456248540,-875.45,9.484e-05,2]
[355684745,1741456248550,-929.57,9.484e-05,2]
[355684746,1741456248559,-562.8,9.484e-05,2]
[355684747,1741456248568,-1463.68,9.484e-05,2]
[355684748,1741456248578,-609.08,9.484e-05,2]
[355684749,1741456248588,-606.87,9.484e-05,2]
[355684750,1741456248597,-500.0,9.484e-05,2]
[355684751,1741456248607,-3255.39,9.484e-05,2]
[355684752,1741456248618,-856.21,9.484e-05,2]
[355684753,1741456248628,-500.0,9.484e-05,2]
[355684754,1741456248638,-2399.28,9.484e-05,2]
[355684755,1741456248647,-500.0,9.484e-05,2]
[355684756,1741456248657,-500.0,9.484e-05,2]
[355684757,1741456248667,-1856.69,9.484e-05,2]
[355684758,1741456248676,-704.9,9.484e-05,2]
[355684759,1741456248686,-702.97,9.484e-05,2]
[355684760,1741456248696,-500.0,9.484e-05,2]
[355684761,1741456248705,-500.0,9.484e-05,2]
[355684762,1741456248715,-500.0,9.484e-05,2]
[355684763,1741456248725,-500.0,9.484e-05,2]
[355684764,1741456248735,-500.0,9.484e-05,2]
[355684765,1741456248744,-1464.44,9.484e-05,2]
[355684766,1741456248754,-921.95,9.484e-05,2]
[355684767,1741456248764,-500.0,9.484e-05,2]
[355684768,1741456248774,-738.38,9.484e-05,2]
[355684769,1741456248783,-500.0,9.484e-05,2]
[355684770,1741456248794,-987.9,9.484e-05,2]
[355684771,1741456248805,-500.0,9.484e-05,2]
[355684772,1741456248815,-1132.36,9.484e-05,2]
[355684773,1741456248826,-1049.23,9.484e-05,2]
[355684774,1741456248835,-500.0,9.484e-05,2]
[355684775,1741456248845,-2015.78,9.484e-05,2]
[355684776,1741456248855,-500.0,9.484e-05,2]
[355684777,1741456248864,-1402.29,9.484e-05,2]
[355684778,1741456248873,-500.0,9.484e-05,2]
[355684779,1741456248882,-1530.43,9.484e-05,2]
[355684780,1741456248892,-3538.21,9.484e-05,2]
[355684781,1741456248902,-500.0,9.484e-05,2]
[355684782,1741456248911,-3141.66,9.484e-05,2]
[355684783,1741456248921,-500.0,9.484e-05,2]
[355684784,1741456248931,-1808.5,9.484e-05,2]
[355684785,1741456248941,-500.0,9.484e-05,2]
[355684786,1741456248951,-2951.36,9.484e-05,2]
[355684787,1741456248960,-500.0,9.484e-05,2]
[355684788,1741456248970,-13800.49,9.484e-05,2]
[355684789,1741456248980,-500.0,9.484e-05,2]
[355684790,1741456248991,-521.4,9.484e-05,2]
[355684791,1741456249002,-1367.41,9.484e-05,2]
[355684792,1741456249011,-500.0,9.484e-05,2]
[355684793,1741456249021,-500.0,9.484e-05,2]
[355684794,1741456249030,-991.23,9.484e-05,2]
[355684795,1741456249039,-500.0,9.484e-05,2]
[355684796,1741456249049,-1840.5,9.484e-05,2]
[355684797,1741456249059,-616.58,9.484e-05,2]
[355684798,1741456249068,-500.0,9.484e-05,2]
[355684799,1741456249078,-9909.89,9.484e-05,2]
[355684800,1741456249088,-500.0,9.484e-05,2]
[355684801,1741456249098,-500.0,9.484e-05,2]
[355684802,1741456249107,-500.0,9.484e-05,2]
[355684803,1741456249117,-1130.76,9.484e-05,2]
[355684804,1741456249127,-500.0,9.484e-05,2]
[355684805,1741456249136,-500.0,9.484e-05,2]
[355684806,1741456249145,-500.0,9.484e-05,2]
[355684807,1741456249155,-500.0,9.484e-05,2]
[355684808,1741456249164,-902.26,9.484e-05,2]
[355684809,1741456249174,-1896.91,9.484e-05,2]
[355684810,1741456249184,-500.0,9.484e-05,2]
[355684811,1741456249194,-1000.0,9.484e-05,2]
[355684812,1741456249204,-605.5468592,9.485e-05,2]
[355684813,1741456249219,-500.0,9.485e-05,2]
[355684814,1741456249229,-500.0,9.485e-05,2]
[355684815,1741456249239,-500.0,9.485e-05,2]
[355684816,1741456249248,-500.0,9.485e-05,2]